bitfinex/quotes_ETHUSD_20220120
["timestamp","ask_amount","ask_price","bid_price","bid_amount"]
[1642642403916,0.80926369,3098.5,3098.0,0.8069627]
[1642642404318,0.00170527,3098.4,3098.0,1.1069627]
[1642642405919,1.1573473,3098.4,3098.0,0.8069627]
[1642642406167,4.36508794,3098.3,3098.0,0.8069627]
[1642642406470,3.55787794,3098.2,3098.0,0.8069627]
[1642642406664,0.3,3098.1,3098.0,0.8069627]
[1642642407267,0.3,3098.1,3098.0,1.1069627]
[1642642407669,0.3,3098.3,3098.0,3.47965351]
[1642642408072,0.00170527,3098.4,3098.0,3.47965351]
[1642642408272,1.1904,3098.7,3098.1,0.16443492]
[1642642408273,1.4904,3098.7,3098.1,0.16443492]
[1642642408477,2.75055571,3098.6,3098.2,1.6137661]
[1642642408672,0.00113685,3098.6,3098.3,1.16942554]
[1642642408976,0.00113685,3098.6,3098.3,0.03923451]
[1642642410011,0.00113685,3098.6,3098.3,1.99680432]
[1642642410212,0.00113685,3098.6,3098.4,2.35534052]
[1642642410612,0.00113685,3098.6,3098.4,2.68443283]
[1642642410812,0.00113685,3098.6,3098.4,0.3]
[1642642411012,0.00113685,3098.6,3098.3,1.99680432]
[1642642411013,0.00113685,3098.6,3098.3,2.29680432]
[1642642411215,0.00113685,3098.6,3098.5,1.25056794]
[1642642411413,0.00113685,3098.6,3098.5,1.55056794]
[1642642414668,0.00113685,3098.6,3098.5,3.91542004]
[1642642415268,2.75050443,3098.7,3098.6,2.75]
[1642642415468,2.75050443,3098.7,3098.6,2.42204499]
[1642642416973,2.75050443,3098.7,3098.6,2.55104499]
[1642642417618,2.75050443,3098.8,3098.6,0.129]
[1642642417817,2.75050443,3098.7,3098.5,2.35738444]
[1642642418018,2.75050443,3098.7,3098.5,0.8068165]
[1642642421767,2.75050443,3098.7,3098.2,1.6141332]
[1642642421969,0.80717,3098.5,3098.1,0.00170527]
[1642642422169,3.17950443,3098.4,3098.3,0.00170527]
[1642642422368,3.17950443,3098.4,3098.1,0.00284212]
[1642642422568,2.75050443,3098.3,3098.1,0.00284212]
[1642642422769,4.28935071,3098.3,3098.0,0.00341054]
[1642642422969,4.28935071,3098.3,3098.1,0.8071585]
[1642642422970,2.87950443,3098.2,3098.1,0.8071585]
[1642642423370,2.87950443,3098.2,3098.1,0.81000062]
[1642642423569,2.87950443,3098.2,3098.1,0.00284212]
[1642642423971,0.80721,3098.1,3097.7,0.00511581]
[1642642424170,2.87950443,3098.0,3097.7,0.00511581]
[1642642424372,2.87950443,3098.0,3097.7,0.81231601]
[1642642424373,2.75050443,3097.9,3097.7,0.81231601]
[1642642424572,1.53884628,3098.3,3097.7,0.81231601]
[1642642424573,0.129,3098.2,3097.7,0.81231601]
[1642642424828,2.42162,3098.0,3097.8,0.00454739]
[1642642425016,2.55062,3098.0,3097.8,0.00454739]
[1642642425516,2.75084619,3097.9,3097.8,0.00454739]
[1642642425915,1.61441,3098.0,3097.8,0.00454739]
[1642642427216,2.75080199,3097.9,3097.8,0.00454739]
[1642642428022,1.61441,3098.0,3097.8,0.00454739]
[1642642428866,2.75082331,3097.9,3097.8,0.00454739]
[1642642429368,3.50629833,3097.9,3097.8,0.00454739]
[1642642430168,2.69902833,3097.9,3097.8,0.00454739]
[1642642430368,1.61441,3098.0,3097.8,0.00454739]
[1642642432071,1.61441,3098.0,3097.8,0.0441321]
[1642642432522,1.61441,3098.0,3097.9,0.00397897]
[1642642433121,1.91441,3098.0,3097.9,0.00397897]
[1642642433320,1.91441,3098.0,3097.8,0.30454739]
[1642642433521,1.91441,3098.0,3097.9,0.00397897]
[1642642433723,10.89875624,3098.0,3097.9,0.00397897]
[1642642433923,10.89875624,3098.0,3097.5,0.00625266]
[1642642434121,1.7393,3097.9,3097.5,0.00625266]
[1642642434321,1.61482,3097.7,3097.5,0.00625266]
[1642642434521,3.99822881,3097.6,3097.5,0.00625266]
[1642642434722,1.54009753,3097.6,3097.5,0.00625266]
[1642642435126,2.70513542,3097.6,3097.5,0.00625266]
[1642642435721,1.29403789,3097.6,3097.5,0.00625266]
[1642642435920,2.90889789,3097.6,3097.4,0.129]
[1642642437167,4.04752058,3097.6,3097.4,0.129]
[1642642437570,2.90889789,3097.6,3097.4,0.129]
[1642642437971,5.42568781,3097.6,3097.4,0.129]
[1642642438569,5.37323538,3097.6,3097.4,0.129]
[1642642438771,9.07132072,3097.5,3097.4,0.129]
[1642642438971,4.52931949,3097.5,3097.4,0.129]
[1642642439173,4.3686877,3097.5,3097.4,0.129]
[1642642439822,2.70239877,3097.5,3097.4,0.129]
[1642642440012,2.83139877,3097.5,3097.4,0.129]
[1642642440417,5.29922035,3097.5,3097.4,0.129]
[1642642441215,2.83139877,3097.5,3097.4,0.129]
[1642642441414,1.4024,3097.5,3097.4,0.129]
[1642642441718,1.16503789,3097.6,3097.4,0.129]
[1642642442115,0.129,3097.8,3097.4,0.9362141]
[1642642442519,0.00113684,3097.7,3097.5,1.39741992]
[1642642442925,0.00113684,3097.7,3097.4,0.9362141]
[1642642444168,0.00113684,3097.7,3097.4,0.8072141]
[1642642445368,0.80733,3097.6,3097.4,0.8072141]
[1642642446869,0.00113684,3097.7,3097.4,0.8072141]
[1642642447322,0.00113684,3097.7,3097.6,0.7571516]
[1642642447519,0.00113684,3097.7,3097.6,1.09142419]
[1642642450627,0.00113684,3097.7,3097.6,1.0571516]
[1642642450834,0.00113684,3097.7,3097.6,0.7571516]
[1642642451265,0.00113684,3097.7,3097.6,1.09408128]
[1642642454674,0.00113684,3097.7,3097.6,1.0571516]
[1642642455313,0.00113684,3097.7,3097.6,0.7571516]
[1642642455511,0.00113684,3097.7,3097.6,1.09270022]
[1642642456915,0.00113684,3097.7,3097.6,1.0571516]
[1642642457516,0.00113684,3097.7,3097.6,1.087432]
[1642642458565,0.00113684,3097.7,3097.6,1.0571516]
[1642642460367,0.00113684,3097.7,3097.6,0.7571516]
[1642642460769,0.00113684,3097.7,3097.4,0.8073812]
[1642642460770,1.22806219,3097.6,3097.4,0.8073812]
[1642642461768,2.75120655,3097.5,3097.4,0.8073812]
[1642642461971,2.75120655,3097.5,3097.4,1.1073812]
[1642642462172,2.75120655,3097.5,3096.9,0.129]
[1642642462173,5.38160609,3097.5,3096.9,0.129]
[1642642462425,2.75118867,3097.4,3096.9,0.129]
[1642642462622,2.75118867,3097.4,3097.0,0.00284212]
[1642642462623,4.09221856,3097.3,3097.0,0.00284212]
[1642642462819,2.75118867,3097.2,3097.0,0.00284212]
[1642642463019,6.229,3097.1,3097.0,0.00284212]
[1642642463220,2.23299326,3097.0,3096.6,0.00511581]
[1642642463421,2.88018867,3096.9,3096.6,0.81270271]
[1642642463621,0.129,3096.9,3096.6,0.81270271]
[1642642463820,5.466,3096.8,3096.7,0.00454739]
[1642642464222,5.466,3096.8,3096.6,0.00511581]
[1642642464421,2.88883,3096.8,3096.6,0.00511581]
[1642642466668,3.01793,3096.8,3096.6,0.00511581]
[1642642467265,2.88883,3096.8,3096.6,0.00511581]
[1642642467475,0.466,3096.8,3096.6,0.00511581]
[1642642468469,4.329,3096.7,3096.6,0.00511581]
[1642642468671,4.2,3096.7,3096.6,0.00511581]
[1642642468869,0.29908107,3096.7,3096.6,0.00511581]
[1642642469068,1.10665107,3096.7,3096.6,0.00511581]
[1642642469276,0.80757,3096.7,3096.6,0.00511581]
[1642642469470,0.466,3096.8,3096.6,0.00511581]
[1642642470626,0.595,3096.8,3096.6,1.62002731]
[1642642470830,2.21013,3096.8,3096.6,1.62002731]
[1642642471025,2.795,3096.8,3096.7,0.00454739]
[1642642471225,0.595,3096.8,3096.7,0.00454739]
[1642642471626,1.40251,3096.8,3096.7,0.00454739]
[1642642479918,1.27351,3096.8,3096.7,0.00454739]
[1642642483370,0.466,3096.8,3096.7,0.00454739]
[1642642484573,0.3,3097.0,3096.7,0.84965339]
[1642642484820,1.10744,3097.1,3096.7,0.84965339]
[1642642485015,1.10744,3097.1,3096.8,0.30397897]
[1642642485417,1.10744,3097.1,3096.9,0.00341054]
[1642642485621,1.10744,3097.1,3096.9,0.81083274]
[1642642486520,3.279,3097.0,3096.9,0.81083274]
[1642642487624,5.77955233,3097.0,3096.9,0.81083274]
[1642642488569,5.77955233,3097.0,3096.9,0.81199571]
[1642642488964,6.77955233,3097.0,3096.9,0.81199571]
[1642642489364,5.1,3096.9,3096.5,0.0345099]
[1642642489571,0.80772,3096.6,3095.9,0.03107494]
[1642642489768,2.96905756,3096.5,3095.6,1.25481852]
[1642642489973,0.429,3096.4,3095.6,1.25481852]
[1642642490268,0.429,3096.4,3095.7,0.00682108]
[1642642490466,1.09547213,3095.9,3095.7,0.00682108]
[1642642490668,1.09547213,3095.9,3095.7,0.81455288]
[1642642490871,1.39547213,3095.9,3095.7,0.81455288]
[1642642491068,1.39547213,3095.9,3095.8,0.00625266]
[1642642491470,0.3,3095.9,3095.8,0.00625266]
[1642642491968,1.61521,3096.4,3095.8,0.00625266]
[1642642491969,0.3,3096.3,3095.9,1.6151498]
[1642642492168,0.3,3096.3,3095.9,1.9163128]
[1642642492419,0.3,3096.3,3096.0,0.00511581]
[1642642492624,1.14162372,3096.5,3096.0,2.42885473]
[1642642493023,0.3,3096.4,3096.1,0.30454739]
[1642642493221,0.3,3096.4,3096.1,0.30571043]
[1642642493422,0.3,3096.4,3096.2,0.00397897]
[1642642493622,0.3,3096.4,3096.2,0.00514201]
[1642642493823,0.129,3097.2,3096.2,0.00514201]
[1642642494028,5.62745581,3097.5,3096.2,0.00514201]
[1642642494029,4.43698668,3097.5,3096.5,1.54819473]
[1642642494326,0.00284211,3097.4,3096.6,0.13070527]
[1642642494522,1.23536322,3097.3,3096.8,0.8072857]
[1642642494723,1.23763691,3097.3,3096.8,1.10844874]
[1642642494922,0.80906527,3097.2,3096.8,0.80844874]
[1642642495128,0.129,3097.1,3096.8,0.80844874]
[1642642495323,0.00113684,3097.1,3096.8,0.80844874]
[1642642495522,1.61482,3097.4,3096.8,0.80844874]
[1642642495523,0.129,3097.4,3096.8,0.80844874]
[1642642496086,0.00113685,3097.3,3096.9,0.80848285]
[1642642496278,0.00113685,3097.3,3096.9,0.80964591]
[1642642496476,0.3,3097.2,3096.9,1.10964591]
[1642642496879,0.3,3097.2,3096.9,2.72433791]
[1642642497080,0.80737,3097.2,3096.9,2.72433791]
[1642642497481,0.3,3097.1,3096.9,2.72433791]
[1642642497687,2.529,3097.0,3096.9,1.91699191]
[1642642498887,0.129,3097.0,3096.9,1.91699191]
[1642642499289,0.00113685,3097.3,3096.9,1.91699191]
[1642642500130,0.00113685,3097.3,3097.0,0.93623]
[1642642500338,0.00113685,3097.3,3097.1,1.50599333]
[1642642500528,0.00113685,3097.3,3097.2,0.129]
[1642642500731,2.75113226,3097.5,3097.2,0.00116309]
[1642642500930,1.36690032,3097.6,3097.2,0.00116309]
[1642642501131,0.00113685,3097.5,3097.2,0.00116309]
[1642642501532,2.75218982,3097.5,3097.2,0.00116309]
[1642642501730,0.00113685,3097.5,3097.2,0.00116309]
[1642642502133,2.75227442,3097.5,3097.2,0.00116309]
[1642642502332,2.75113757,3097.4,3097.2,0.00116309]
[1642642502630,2.75113757,3097.3,3097.2,0.00116309]
[1642642503030,1.10737,3097.4,3097.2,0.00116309]
[1642642503233,2.75123965,3097.3,3097.2,0.00116309]
[1642642503433,1.10737,3097.4,3097.2,0.00116309]
[1642642503665,1.10737,3097.4,3097.2,2.42298259]
[1642642503866,0.129,3097.3,3097.2,2.42298259]
[1642642504067,0.129,3097.3,3097.2,2.72298259]
[1642642505071,2.88020058,3097.3,3097.2,2.72298259]
[1642642506069,2.75120058,3097.3,3097.2,2.72298259]
[1642642506476,2.75120058,3097.3,3097.2,2.42298259]
[1642642506681,5.45,3097.2,3097.1,1.6143095]
[1642642506875,12.82926024,3097.2,3097.1,0.00116309]
[1642642507074,12.82926024,3097.2,3097.1,0.00229994]
[1642642507075,14.44443024,3097.2,3097.1,0.00229994]
[1642642507515,15.44443024,3097.2,3097.1,0.00229994]
[1642642507916,16.25202024,3097.2,3097.1,0.00229994]
[1642642508120,16.71802024,3097.2,3097.1,0.00229994]
[1642642508721,15.91043024,3097.2,3097.1,0.00229994]
[1642642509220,10.76043024,3097.2,3097.1,0.00229994]
[1642642509419,6.87656058,3097.2,3097.1,0.00229994]
[1642642509619,3.64620058,3097.2,3097.1,0.00229994]
[1642642509821,3.51720058,3097.2,3097.1,0.00229994]
[1642642510819,4.51720058,3097.2,3097.1,0.00229994]
[1642642511281,3.51720058,3097.2,3097.1,0.00229994]
[1642642511480,3.64620058,3097.2,3097.1,0.00229994]
[1642642512083,3.51720058,3097.2,3097.1,0.00229994]
[1642642512383,3.05120058,3097.2,3097.1,0.00229994]
[1642642514087,0.56737558,3097.2,3097.1,0.00229994]
[1642642514385,0.00113685,3097.5,3097.1,0.00229994]
[1642642515017,1.61593685,3097.5,3097.1,0.00229994]
[1642642515218,0.80735,3097.4,3097.1,0.00229994]
[1642642515517,0.00113685,3097.5,3097.1,0.00229994]
[1642642515917,0.13013685,3097.5,3097.1,0.00229994]
[1642642516320,0.93748685,3097.5,3097.1,0.00229994]
[1642642516719,0.80735,3097.4,3097.1,0.80958294]
[1642642516923,0.80735,3097.4,3097.1,0.84192647]
[1642642517123,0.3,3097.2,3097.1,1.14192647]
[1642642517523,0.3,3097.2,3097.1,1.10958294]
[1642642518332,0.3,3097.2,3097.1,1.14639988]
[1642642519162,0.3,3097.2,3097.1,1.10958294]
[1642642520165,5.916,3097.2,3097.1,0.80958294]
[1642642520365,6.045,3097.2,3097.1,0.00229994]
[1642642520563,7.045,3097.2,3097.1,0.00229994]
[1642642521168,6.045,3097.2,3097.1,0.00229994]
[1642642521366,7.045,3097.2,3097.1,0.00229994]
[1642642522619,1.895,3097.2,3097.1,0.00229994]
[1642642523419,4.495,3097.2,3097.1,0.00229994]
[1642642523918,3.495,3097.2,3097.1,0.00229994]
[1642642524320,0.895,3097.2,3097.1,0.00229994]
[1642642525518,3.345,3097.2,3097.1,0.00229994]
[1642642525918,4.345,3097.2,3097.1,0.00229994]
[1642642526566,7.095,3097.2,3097.1,0.00229994]
[1642642527163,7.095,3097.2,3096.0,0.03285426]
[1642642527164,5.15,3097.1,3096.0,0.03285426]
[1642642527371,5.15,3097.1,3095.9,0.129]
[1642642527372,4.20708605,3096.4,3095.9,0.129]
[1642642527572,4.20708605,3096.4,3096.1,0.00568423]
[1642642527573,4.39888642,3096.3,3096.1,0.00568423]
[1642642527770,1.895,3096.3,3096.1,0.00568423]
[1642642528267,1.895,3096.3,3095.9,0.129]
[1642642528268,5.15,3096.2,3095.9,0.129]
[1642642528470,0.595,3096.1,3095.9,0.129]
[1642642528670,5.95797,3096.0,3095.9,0.129]
[1642642528874,6.55317,3096.0,3095.9,0.129]
[1642642529069,7.55317,3096.0,3095.9,0.13013685]
[1642642529673,12.64889105,3096.0,3095.9,0.13013685]
[1642642530815,12.51969105,3096.0,3095.9,0.13013685]
[1642642531420,4.80470093,3096.0,3095.9,0.13013685]
[1642642532020,3.80470093,3096.0,3095.9,1.32344761]
[1642642532219,2.53073093,3096.0,3095.9,0.13013685]
[1642642532422,0.80796,3096.2,3095.9,0.43013685]
[1642642532622,0.80761,3096.4,3095.9,0.00113685]
[1642642533022,0.00113685,3096.3,3096.0,0.7268935]
[1642642533224,1.52050557,3096.1,3095.7,0.00227369]
[1642642533424,1.52050557,3096.1,3095.7,0.30227369]
[1642642533666,2.62830557,3096.1,3095.6,0.00284212]
[1642642533866,2.62830557,3096.1,3095.8,0.00170527]
[1642642534171,2.62830557,3096.1,3095.6,0.00284212]
[1642642534568,2.62830557,3096.1,3095.6,0.72982982]
[1642642534569,1.1078,3096.1,3095.6,0.72982982]
[1642642534967,1.1078,3096.1,3095.7,0.00227369]
[1642642535568,2.02344923,3095.9,3095.7,0.00227369]
[1642642535967,0.3,3095.8,3095.7,0.00227369]
[1642642536869,5.916,3095.8,3095.7,0.00227369]
[1642642537069,12.1454639,3095.8,3095.7,0.00227369]
[1642642537334,12.1454639,3095.8,3095.5,0.01]
[1642642537335,12.1454639,3095.8,3095.6,0.00284212]
[1642642537523,4.5,3095.7,3095.6,0.00284212]
[1642642537723,0.766,3095.8,3095.6,0.00284212]
[1642642537924,5.15786,3095.7,3095.6,0.00284212]
[1642642538124,0.93706,3095.7,3095.6,0.00284212]
[1642642538323,2.38172,3095.8,3095.6,0.00284212]
[1642642538324,0.766,3095.8,3095.6,0.00284212]
[1642642539023,3.2314,3096.2,3095.6,0.00284212]
[1642642539230,0.3,3095.8,3095.6,0.00284212]
[1642642539426,2.88170838,3095.7,3095.6,0.00284212]
[1642642539627,0.766,3095.8,3095.6,0.00284212]
[1642642539825,5.16484717,3095.7,3095.6,0.00284212]
[1642642540325,1.46484717,3095.7,3095.6,0.00284212]
[1642642540525,8.55755386,3095.7,3095.6,0.00284212]
[1642642540726,4.80473649,3095.7,3095.6,0.00284212]
[1642642540925,5.80473649,3095.7,3095.6,0.00284212]
[1642642541166,5.93393649,3095.7,3095.6,0.00284212]
[1642642541564,8.6867801,3095.7,3095.6,0.00284212]
[1642642541965,5.93393649,3095.7,3095.6,0.00284212]
[1642642542165,2.06004717,3095.7,3095.6,0.00284212]
[1642642542572,0.466,3095.7,3095.6,0.00284212]
[1642642543669,1.86978518,3095.7,3095.6,0.00284212]
[1642642544274,0.466,3095.7,3095.6,0.00284212]
[1642642545121,0.3,3095.8,3095.6,0.00284212]
[1642642545325,0.3,3095.8,3095.6,1.3390479]
[1642642545526,1.2796,3096.3,3095.6,1.67604576]
[1642642545527,1.1504,3096.3,3095.6,1.67604576]
[1642642545722,2.75254906,3096.2,3095.8,0.7268402]
[1642642545922,0.3,3096.2,3095.9,0.03878867]
[1642642546227,0.00227369,3096.5,3096.0,1.43378708]
[1642642546426,0.00227369,3096.5,3096.0,1.73378708]
[1642642546622,1.61511,3097.0,3096.0,1.73378708]
[1642642546623,0.00170527,3096.4,3096.1,2.8352847]
[1642642547124,2.7577214,3097.1,3096.1,2.8352847]
[1642642547321,2.7577214,3097.1,3096.5,1.47207754]
[1642642547529,2.75715298,3097.0,3096.5,1.77207754]
[1642642547724,0.00511581,3097.0,3096.5,1.77207754]
[1642642547926,0.00454739,3096.9,3096.5,1.77207754]
[1642642548326,0.00397896,3096.8,3096.5,0.03581904]
[1642642548565,0.00397896,3096.8,3096.6,0.3]
[1642642548866,0.00341054,3096.7,3096.6,0.3]
[1642642549068,0.00341054,3096.7,3096.6,1.0266641]
[1642642549866,1.31650974,3096.7,3096.6,1.0266641]
[1642642550268,4.0684991,3096.7,3096.6,1.0266641]
[1642642550868,1.31650974,3096.7,3096.6,1.0266641]
[1642642551272,2.75547341,3096.7,3096.6,1.0266641]
[1642642551877,0.00341054,3096.7,3096.6,1.0266641]
[1642642552079,2.75546075,3096.7,3096.6,1.0266641]
[1642642552333,2.75546075,3096.7,3096.3,1.6449]
[1642642552334,0.00341054,3096.7,3096.3,1.6449]
[1642642552523,0.00341054,3096.7,3096.3,3.00340511]
[1642642552725,0.00284212,3096.6,3096.3,1.6449]
[1642642553124,0.00227369,3096.5,3096.3,1.6449]
[1642642553322,0.00139424,3096.5,3096.3,1.6449]
[1642642553524,0.00082582,3096.4,3096.3,4.01354192]
[1642642553723,0.00082582,3096.4,3096.3,1.6449]
[1642642558178,0.00082582,3096.4,3096.3,4.10583504]
[1642642558378,0.00082582,3096.4,3096.3,4.50398699]
[1642642559377,0.00082582,3096.4,3096.3,4.01424188]
[1642642559578,0.00082582,3096.4,3096.3,1.6449]
[1642642559829,0.00082582,3096.4,3096.3,1.6149]
[1642642560615,0.00082582,3096.4,3096.3,3.98634468]
[1642642560819,0.00082582,3096.4,3096.3,4.11534468]
[1642642561018,0.00082582,3096.4,3096.3,4.13668096]
[1642642561219,0.00082582,3096.4,3096.3,1.7439]
[1642642561518,0.00082582,3096.4,3096.3,4.12231095]
[1642642561728,0.00082582,3096.4,3096.3,4.21152949]
[1642642561918,0.00082582,3096.4,3096.3,1.7439]
[1642642563324,0.00082582,3096.4,3096.3,1.6149]
[1642642564367,0.00082582,3096.4,3096.3,1.7439]
[1642642564770,0.00082582,3096.4,3096.3,1.6149]
[1642642564972,0.00082582,3096.4,3096.3,6.44871839]
[1642642565171,0.00082582,3096.4,3096.3,1.6149]
[1642642565469,0.00082582,3096.4,3096.3,4.4649]
[1642642565870,0.00082582,3096.4,3096.3,6.8381]
[1642642566069,0.00082582,3096.4,3096.3,6.94216345]
[1642642566472,0.00082582,3096.4,3096.3,1.6149]
[1642642570032,0.00082582,3096.4,3096.3,6.9264]
[1642642570232,0.129,3097.1,3096.4,5.15]
[1642642570431,0.129,3097.5,3096.6,0.8072]
[1642642570731,0.00284212,3096.9,3096.7,2.94593288]
[1642642571173,0.00227369,3096.8,3096.7,4.12329227]
[1642642571377,0.00227369,3096.8,3096.7,5.73777227]
[1642642571575,0.00511581,3096.8,3096.7,5.73777227]
[1642642571778,0.00511581,3096.8,3096.7,2.79183939]
[1642642572585,0.00511581,3096.8,3096.7,5.15665011]
[1642642572980,0.129,3097.5,3096.8,4.35]
[1642642573182,2.75154464,3097.4,3096.9,4.95088817]
[1642642573382,2.75154464,3097.3,3096.9,4.95316186]
[1642642573584,0.129,3097.7,3097.0,0.00170527]
[1642642573585,2.75154464,3097.6,3097.0,0.00170527]
[1642642573784,2.7513526,3097.5,3097.0,1.20236245]
[1642642573983,2.7513526,3097.4,3097.1,4.27464382]
[1642642574185,0.00170527,3097.6,3097.2,2.72625234]
[1642642574388,0.00170527,3097.6,3097.3,2.56305425]
[1642642574588,0.00113685,3097.5,3097.3,2.69205425]
[1642642574826,0.00113685,3097.5,3097.4,5.3115]
[1642642575018,2.75113715,3097.9,3097.4,5.4405]
[1642642575019,0.00284212,3097.8,3097.4,5.4405]
[1642642575224,2.75113715,3097.9,3097.4,5.4405]
[1642642575225,2.75113715,3097.9,3097.5,0.129]
[1642642575420,2.75113715,3097.9,3097.5,2.55008]
[1642642575622,0.129,3098.0,3097.8,2.9]
[1642642575820,0.129,3098.0,3097.9,3.779]
[1642642576026,0.129,3098.0,3097.9,0.129]
[1642642576222,0.13013685,3098.0,3097.9,0.129]
[1642642576421,0.00123685,3098.2,3098.0,5.20546321]
[1642642576622,1.62261928,3098.9,3098.7,1.42551484]
[1642642576822,3.43392892,3099.1,3098.7,2.25321484]
[1642642576823,1.0,3099.1,3098.7,2.25321484]
[1642642577022,0.00454738,3098.8,3098.7,2.25321484]
[1642642577830,0.00454738,3098.8,3098.7,3.06011484]
[1642642578025,0.0036926,3098.8,3098.7,3.06011484]
[1642642579280,0.0036926,3098.8,3098.7,1.6346]
[1642642579481,0.0036926,3098.8,3098.0,5.11250321]
[1642642579482,3.4592249,3098.6,3098.0,5.11250321]
[1642642579686,7.50033959,3098.6,3097.7,1.61422]
[1642642579879,7.50033959,3098.6,3097.9,0.03]
[1642642579880,0.13098733,3098.5,3097.9,0.03]
[1642642580080,0.13098733,3098.5,3097.9,1.64401]
[1642642580081,0.93810733,3098.5,3097.9,1.64401]
[1642642580279,0.80853471,3098.4,3098.1,2.14165432]
[1642642580488,0.00141891,3098.4,3098.1,2.14165432]
[1642642580683,3.5882249,3098.6,3098.2,1.47800986]
[1642642580684,0.00085049,3098.3,3098.2,1.47800986]
[1642642586094,0.129,3099.3,3098.3,5.15]
[1642642586297,3.16477673,3099.9,3098.5,0.80672]
[1642642586298,0.129,3099.6,3098.5,0.80672]
[1642642586491,0.04899886,3099.9,3099.5,1.51244107]
[1642642586789,0.04899886,3099.9,3098.6,0.8905]
[1642642586790,0.13752635,3099.8,3098.7,6.88338207]
[1642642586990,0.00852635,3099.8,3098.8,0.129]
[1642642587189,0.00795792,3099.7,3098.8,0.129]
[1642642587593,0.0073895,3099.6,3098.8,0.2905]
[1642642587792,0.0073895,3099.6,3099.0,0.80669]
[1642642587994,0.129,3100.0,3099.5,2.00946084]
[1642642588199,2.4522376,3100.1,3099.5,2.00946084]
[1642642588393,0.00852635,3099.8,3099.5,2.00946084]
[1642642588792,0.466,3100.1,3099.1,1.74233]
[1642642588793,0.00795792,3099.7,3099.1,1.74233]
[1642642588996,0.00795792,3099.7,3098.9,2.05534]
[1642642588997,0.81470292,3099.7,3098.9,1.2486]
[1642642589195,0.9432095,3099.6,3098.8,1.61349]
[1642642589397,0.466,3099.5,3098.0,0.00085478]
[1642642589594,0.01225938,3099.3,3098.0,0.00085478]
[1642642589837,1.25542749,3098.9,3098.2,1.3349762]
[1642642590029,1.25542749,3098.9,3098.4,1.50372061]
[1642642590231,0.00284211,3098.8,3098.4,1.50372061]
[1642642590629,0.00227369,3098.7,3098.4,1.50372061]
[1642642591031,0.00170527,3098.6,3098.4,1.50372061]
[1642642591331,0.8069293,3098.9,3098.4,1.50372061]
[1642642591332,0.00113684,3098.5,3098.4,1.50372061]
[1642642593134,0.00113684,3098.5,3098.1,1.74285]
[1642642593979,0.00113684,3098.5,3098.1,1.61385]
[1642642594180,0.00113684,3098.5,3098.1,2.9287997]
[1642642594784,0.00113684,3098.5,3098.1,3.7357197]
[1642642595988,0.00113684,3098.5,3098.1,3.8647197]
[1642642600330,0.00113684,3098.5,3098.1,3.7357197]
[1642642600530,0.00113684,3098.5,3098.4,1.34231692]
[1642642601479,0.00113684,3098.5,3098.4,3.90677555]
[1642642601876,0.00113684,3098.5,3098.4,4.03577555]
[1642642603080,0.00113684,3098.5,3098.4,3.90677555]
[1642642603480,0.00113684,3098.5,3098.4,1.34231692]
[1642642604487,0.00113684,3098.5,3098.4,1.50381692]
[1642642605421,0.00113684,3098.5,3098.4,0.129]
[1642642605624,0.00113684,3098.5,3098.2,1.61382]
[1642642605926,0.01364288,3098.5,3098.1,1.61385]
[1642642606128,3.34516653,3098.4,3098.0,0.00170527]
[1642642606327,2.75016653,3098.3,3098.0,0.00170527]
[1642642606524,0.129,3098.2,3098.0,0.00170527]
[1642642606733,3.7,3098.1,3098.0,0.00170527]
[1642642607325,6.4508214,3098.1,3098.0,0.00170527]
[1642642607826,6.4508214,3098.1,3098.0,0.00079294]
[1642642609076,8.90979937,3098.1,3098.0,0.00079294]
[1642642609680,6.4508214,3098.1,3098.0,0.00079294]
[1642642609879,8.92114007,3098.1,3098.0,0.00079294]
[1642642610080,9.05014007,3098.1,3098.0,0.00079294]
[1642642610287,9.05014007,3098.1,3097.9,0.03]
[1642642610288,5.15,3098.0,3097.9,0.03]
[1642642610480,11.51731948,3098.0,3097.4,0.03]
[1642642610682,4.5582414,3097.9,3097.4,0.03]
[1642642610881,5.15,3097.7,3096.8,0.80741]
[1642642611080,6.44773724,3097.8,3096.3,1.44651687]
[1642642611081,7.43750407,3097.6,3096.3,1.44651687]
[1642642611280,1.0,3097.3,3096.9,0.00341054]
[1642642611480,1.32153357,3097.0,3096.9,0.00341054]
[1642642611681,2.12902357,3097.0,3096.9,0.00341054]
[1642642611885,2.25802357,3097.0,3096.9,0.00341054]
[1642642613324,0.93649,3097.0,3096.9,0.00341054]
[1642642613528,0.129,3097.0,3096.9,0.00341054]
[1642642613728,0.8073244,3097.3,3096.9,0.00341054]
[1642642613926,0.8073244,3097.3,3096.7,0.00454739]
[1642642614727,0.8073244,3097.3,3096.9,0.8073]
[1642642615127,0.8073244,3097.3,3097.0,0.00284212]
[1642642615928,0.129,3097.4,3097.0,0.00284212]
[1642642616175,0.595,3097.4,3097.0,0.00284212]
[1642642616575,0.466,3097.4,3097.0,0.00284212]
[1642642616774,0.466,3097.4,3097.0,0.81017212]
[1642642617181,0.466,3097.4,3097.1,0.0022737]
[1642642617781,2.75124405,3097.3,3097.1,0.0022737]
[1642642617981,3.55857045,3097.3,3097.1,0.0022737]
[1642642618187,1.6146964,3097.3,3097.1,0.0022737]
[1642642618382,8.90138425,3097.2,3097.1,0.0022737]
[1642642618589,9.03038425,3097.2,3096.7,0.00454739]
[1642642618784,2.88038425,3097.1,3096.7,0.00454739]
[1642642618983,1.46892743,3096.8,3096.7,0.00454739]
[1642642619385,1.46892743,3096.8,3096.5,0.00568424]
[1642642620226,2.19988784,3096.7,3096.3,0.00682108]
[1642642620626,3.00741784,3096.7,3096.3,0.00682108]
[1642642621827,1.6150468,3096.7,3096.3,0.00682108]
[1642642622731,0.9365168,3096.7,3096.3,0.00682108]
[1642642622931,2.17839886,3096.7,3096.3,0.00682108]
[1642642623873,2.04939886,3096.7,3096.3,0.00682108]
[1642642624475,0.8075168,3096.7,3096.3,0.00682108]
[1642642626176,0.80755,3096.6,3096.3,0.00682108]
[1642642626774,1.6151454,3096.6,3096.2,0.00738951]
[1642642626975,0.8075954,3096.6,3096.2,0.00738951]
[1642642628027,0.8076,3096.5,3096.2,0.00738951]
[1642642629328,1.52339493,3096.3,3096.2,0.00738951]
[1642642629930,1.52339493,3096.3,3095.9,0.00909478]
[1642642631076,3.13889493,3096.3,3095.9,0.00909478]
[1642642631476,1.52339493,3096.3,3095.9,0.00909478]
[1642642631876,1.52339493,3096.3,3095.8,0.0096632]